Workbook

Sheet Micro Graphs
A2: Updated: | B2: 2011-05-20

Sheet Macro Graphs
A2: Updated: | B2: 2012-05-25

Sheet TaskRawData
A1: Subject | B1: Completed | C1: In Date | D1: Out Date | E1: Category | F1: Task life-time
B2: TRUE | C2: 2012-03-01 | D2: 2012-04-20 | E2: TO CHECK | F2: =D2-C2 -> 50
B3: TRUE | C3: 2012-02-29 | D3: 2012-03-06 | F3: 6
B4: TRUE | C4: 2012-02-29 | D4: 2012-03-07 | F4: 7
B5: TRUE | C5: 2012-02-29 | D5: 2012-03-07 | E5: TO CHECK | F5: 7
B6: TRUE | C6: 2012-02-29 | D6: 2012-03-05 | F6: 5
B7: TRUE | C7: 2012-02-29 | D7: 2012-03-05 | E7: TO CHECK | F7: 5
B8: TRUE | C8: 2012-02-29 | D8: 2012-03-15 | E8: TO CHECK | F8: 15
B9: TRUE | C9: 2012-02-29 | D9: 2012-03-05 | E9: TO CHECK | F9: 5
B10: TRUE | C10: 2012-02-29 | D10: 2012-03-26 | E10: Dead | F10: 26
B11: TRUE | C11: 2012-02-28 | D11: 2012-03-05 | F11: 6
B12: TRUE | C12: 2012-02-28 | D12: 2012-02-29 | E12: TO CHECK | F12: 1
B13: TRUE | C13: 2012-02-28 | D13: 2012-02-28 | F13: 0
B14: TRUE | C14: 2012-02-28 | D14: 2012-02-29 | F14: 1
B15: TRUE | C15: 2012-02-28 | D15: 2012-02-29 | F15: 1
B16: TRUE | C16: 2012-02-27 | D16: 2012-03-26 | E16: Dead | F16: 28
B17: TRUE | C17: 2012-02-27 | D17: 2012-02-28 | F17: 1
B18: TRUE | C18: 2012-02-27 | D18: 2012-02-29 | F18: 2
B19: TRUE | C19: 2012-02-27 | D19: 2012-03-05 | F19: 7
B20: TRUE | C20: 2012-02-27 | D20: 2012-02-27 | F20: 0
B21: TRUE | C21: 2012-02-27 | D21: 2012-02-29 | E21: TO CHECK | F21: 2
B22: TRUE | C22: 2012-02-27 | D22: 2012-02-27 | F22: 0
B23: FALSE | C23: 2012-02-27 | F23: =TODAY()-C23 -> 169
B24: TRUE | C24: 2012-02-27 | D24: 2012-02-27 | F24: =D24-C24 -> 0
B25: TRUE | C25: 2012-02-24 | D25: 2012-02-27 | F25: 3
B26: TRUE | C26: 2012-02-24 | D26: 2012-02-27 | F26: 3
B27: TRUE | C27: 2012-02-24 | D27: 2012-04-12 | E27: TO CHECK | F27: 48
B28: TRUE | C28: 2012-02-24 | D28: 2012-02-24 | F28: 0
B29: TRUE | C29: 2012-02-24 | D29: 2012-02-24 | F29: 0
B30: TRUE | C30: 2012-02-24 | D30: 2012-02-27 | E30: TO CHECK | F30: 3
B31: TRUE | C31: 2012-02-24 | D31: 2012-02-24 | E31: TO CHECK | F31: 0
B32: TRUE | C32: 2012-02-24 | D32: 2012-02-24 | F32: 0
B33: TRUE | C33: 2012-02-24 | D33: 2012-03-19 | E33: TO CHECK | F33: 24
B34: TRUE | C34: 2012-02-22 | D34: 2012-05-03 | E34: Dead | F34: 71
B35: TRUE | C35: 2012-02-22 | D35: 2012-02-29 | E35: TO CHECK | F35: 7
B36: TRUE | C36: 2012-02-21 | D36: 2012-02-24 | F36: 3
B37: TRUE | C37: 2012-02-21 | D37: 2012-02-21 | F37: 0
B38: TRUE | C38: 2012-02-21 | D38: 2012-02-24 | F38: 3
B39: TRUE | C39: 2012-02-21 | D39: 2012-02-24 | F39: 3
B40: TRUE | C40: 2012-02-21 | D40: 2012-02-21 | F40: 0
B41: TRUE | C41: 2012-02-21 | D41: 2012-02-21 | E41: TO CHECK | F41: 0
B42: TRUE | C42: 2012-02-21 | D42: 2012-02-27 | E42: TO CHECK | F42: 6
B43: TRUE | C43: 2012-02-21 | D43: 2012-03-12 | E43: TO CHECK | F43: 20
B44: TRUE | C44: 2012-02-21 | D44: 2012-02-21 | F44: 0
B45: TRUE | C45: 2012-02-21 | D45: 2012-02-27 | F45: 6
B46: TRUE | C46: 2012-02-20 | D46: 2012-03-26 | E46: Dead | F46: 35
B47: TRUE | C47: 2012-02-20 | D47: 2012-02-24 | F47: 4
B48: TRUE | C48: 2012-02-20 | D48: 2012-02-27 | E48: Dead | F48: 7
B49: TRUE | C49: 2012-02-20 | D49: 2012-02-20 | F49: 0
B50: TRUE | C50: 2012-02-27 | D50: 2012-02-27 | F50: 0
B51: TRUE | C51: 2012-02-29 | D51: 2012-02-29 | F51: 0
B52: TRUE | C52: 2012-02-20 | D52: 2012-02-21 | E52: TO CHECK | F52: 1
B53: TRUE | C53: 2012-02-20 | D53: 2012-02-24 | F53: 4
B54: TRUE | C54: 2012-02-20 | D54: 2012-02-22 | E54: TO CHECK | F54: 2
B55: TRUE | C55: 2012-02-20 | D55: 2012-02-20 | E55: TO CHECK | F55: 0
B56: TRUE | C56: 2012-02-20 | D56: 2012-02-21 | E56: TO CHECK | F56: 1
B57: TRUE | C57: 2012-02-20 | D57: 2012-02-20 | E57: TO CHECK | F57: 0
B58: TRUE | C58: 2012-02-20 | D58: 2012-02-20 | F58: 0
B59: TRUE | C59: 2012-02-20 | D59: 2012-02-20 | F59: 0
B60: TRUE | C60: 2012-02-18 | D60: 2012-02-20 | F60: 2
B61: TRUE | C61: 2012-02-18 | D61: 2012-02-20 | F61: 2
B62: TRUE | C62: 2012-02-17 | D62: 2012-05-16 | F62: 89
B63: TRUE | C63: 2012-02-17 | D63: 2012-02-17 | F63: 0
B64: TRUE | C64: 2012-02-17 | D64: 2012-02-20 | E64: TO CHECK | F64: 3
B65: TRUE | C65: 2012-02-17 | D65: 2012-02-17 | F65: 0
B66: TRUE | C66: 2012-02-16 | D66: 2012-02-17 | F66: 1
B67: FALSE | C67: 2012-02-16 | F67: =TODAY()-C67 -> 180
B68: TRUE | C68: 2012-02-16 | D68: 2012-02-21 | E68: TO CHECK | F68: =D68-C68 -> 5
B69: TRUE | C69: 2012-02-16 | D69: 2012-03-06 | F69: 19
B70: TRUE | C70: 2012-02-16 | D70: 2012-02-21 | E70: TO CHECK | F70: 5
B71: TRUE | C71: 2012-02-16 | D71: 2012-02-20 | F71: 4
B72: TRUE | C72: 2012-02-16 | D72: 2012-02-17 | F72: 1
B73: TRUE | C73: 2012-02-16 | D73: 2012-04-26 | E73: Dead | F73: 70
B74: TRUE | C74: 2012-02-16 | D74: 2012-02-17 | F74: 1
B75: TRUE | C75: 2012-02-15 | D75: 2012-02-16 | F75: 1
B76: TRUE | C76: 2012-02-15 | D76: 2012-02-24 | F76: 9
B77: TRUE | C77: 2012-02-15 | D77: 2012-02-20 | E77: TO CHECK | F77: 5
B78: TRUE | C78: 2012-02-15 | D78: 2012-02-15 | E78: TO CHECK | F78: 0
B79: TRUE | C79: 2012-02-15 | D79: 2012-02-15 | E79: TO CHECK | F79: 0
B80: TRUE | C80: 2012-02-15 | D80: 2012-02-16 | E80: TO CHECK | F80: 1
B81: TRUE | C81: 2012-02-15 | D81: 2012-02-15 | E81: TO CHECK | F81: 0
B82: TRUE | C82: 2012-02-15 | D82: 2012-02-16 | E82: TO CHECK | F82: 1
B83: TRUE | C83: 2012-02-15 | D83: 2012-02-20 | E83: TO CHECK | F83: 5
B84: TRUE | C84: 2012-02-15 | D84: 2012-02-20 | F84: 5
B85: TRUE | C85: 2012-02-15 | D85: 2012-03-05 | F85: 19
B86: TRUE | C86: 2012-02-14 | D86: 2012-02-16 | F86: 2
B87: TRUE | C87: 2012-02-14 | D87: 2012-02-16 | F87: 2
B88: TRUE | C88: 2012-02-14 | D88: 2012-02-16 | E88: TO CHECK | F88: 2
B89: TRUE | C89: 2012-02-14 | D89: 2012-02-16 | E89: TO CHECK | F89: 2
B90: TRUE | C90: 2012-02-14 | D90: 2012-02-15 | F90: 1
B91: TRUE | C91: 2012-02-14 | D91: 2012-02-15 | F91: 1
B92: TRUE | C92: 2012-02-14 | D92: 2012-04-19 | E92: Dead | F92: 65
B93: TRUE | C93: 2012-02-14 | D93: 2012-02-16 | F93: 2
B94: TRUE | C94: 2012-02-13 | D94: 2012-02-14 | F94: 1
B95: TRUE | C95: 2012-02-13 | D95: 2012-02-14 | E95: TO CHECK | F95: 1
B96: TRUE | C96: 2012-02-13 | D96: 2012-02-27 | F96: 14
B97: TRUE | C97: 2012-02-13 | D97: 2012-02-13 | F97: 0
B98: TRUE | C98: 2012-02-13 | D98: 2012-02-17 | E98: Dead | F98: 4
B99: TRUE | C99: 2012-02-13 | D99: 2012-02-29 | F99: 16
B100: TRUE | C100: 2012-02-13 | D100: 2012-02-15 | F100: 2
B101: TRUE | C101: 2012-02-13 | D101: 2012-02-13 | F101: 0
B102: TRUE | C102: 2012-02-13 | D102: 2012-02-13 | E102: TO CHECK | F102: 0
B103: TRUE | C103: 2012-02-13 | D103: 2012-02-20 | E103: TO CHECK | F103: 7
B104: TRUE | C104: 2012-02-10 | D104: 2012-02-17 | F104: 7
B105: TRUE | C105: 2012-02-10 | D105: 2012-02-10 | E105: TO CHECK | F105: 0
B106: TRUE | C106: 2012-02-10 | D106: 2012-02-10 | F106: 0
B107: TRUE | C107: 2012-02-10 | D107: 2012-03-23 | F107: 42
B108: TRUE | C108: 2012-02-09 | D108: 2012-02-10 | F108: 1
B109: TRUE | C109: 2012-02-09 | D109: 2012-02-13 | F109: 4
B110: TRUE | C110: 2012-02-08 | D110: 2012-03-15 | F110: 36
B111: TRUE | C111: 2012-02-08 | D111: 2012-02-09 | F111: 1
B112: TRUE | C112: 2012-02-08 | D112: 2012-02-24 | E112: Dead; TO CHECK | F112: 16
B113: TRUE | C113: 2012-02-08 | D113: 2012-02-08 | F113: 0
B114: TRUE | C114: 2012-02-08 | D114: 2012-02-08 | F114: 0
B115: TRUE | C115: 2012-02-08 | D115: 2012-02-08 | F115: 0
B116: TRUE | C116: 2012-02-07 | D116: 2012-02-09 | F116: 2
B117: TRUE | C117: 2012-02-07 | D117: 2012-02-16 | F117: 9
B118: TRUE | C118: 2012-02-07 | D118: 2012-02-07 | E118: TO CHECK | F118: 0
B119: TRUE | C119: 2012-02-07 | D119: 2012-02-16 | E119: TO CHECK | F119: 9
B120: TRUE | C120: 2012-02-07 | D120: 2012-02-13 | F120: 6
B121: TRUE | C121: 2012-02-07 | D121: 2012-04-24 | F121: 77
B122: TRUE | C122: 2012-02-07 | D122: 2012-02-07 | F122: 0
B123: TRUE | C123: 2012-02-06 | D123: 2012-02-13 | E123: TO CHECK | F123: 7
B124: TRUE | C124: 2012-02-06 | D124: 2012-02-08 | F124: 2
B125: TRUE | C125: 2012-02-06 | D125: 2012-02-06 | F125: 0
B126: TRUE | C126: 2012-02-06 | D126: 2012-02-08 | E126: Dead | F126: 2
B127: TRUE | C127: 2012-02-06 | D127: 2012-02-07 | F127: 1
B128: TRUE | C128: 2012-02-06 | D128: 2012-02-17 | E128: TO CHECK | F128: 11
B129: TRUE | C129: 2012-02-06 | D129: 2012-03-14 | F129: 37
B130: TRUE | C130: 2012-02-06 | D130: 2012-02-07 | F130: 1
B131: TRUE | C131: 2012-02-06 | D131: 2012-02-08 | F131: 2
B132: TRUE | C132: 2012-02-06 | D132: 2012-02-09 | F132: =D132-C132 -> 3
B133: TRUE | C133: 2012-02-06 | D133: 2012-02-06 | F133: 0
B134: TRUE | C134: 2012-02-06 | D134: 2012-02-06 | E134: TO CHECK | F134: 0
B135: TRUE | C135: 2012-02-05 | D135: 2012-02-13 | F135: 8
B136: TRUE | C136: 2012-02-05 | D136: 2012-02-07 | F136: 2
B137: TRUE | C137: 2012-02-05 | D137: 2012-02-13 | E137: TO CHECK | F137: 8
B138: TRUE | C138: 2012-02-04 | D138: 2012-02-07 | F138: 3
B139: TRUE | C139: 2012-02-03 | D139: 2012-04-06 | E139: Dead | F139: 63
B140: TRUE | C140: 2012-02-03 | D140: 2012-02-04 | E140: TO CHECK | F140: 1
B141: TRUE | C141: 2012-02-03 | D141: 2012-02-04 | E141: TO CHECK | F141: 1
B142: TRUE | C142: 2012-02-02 | D142: 2012-02-04 | F142: 2
B143: TRUE | C143: 2012-02-02 | D143: 2012-03-29 | F143: 56
B144: TRUE | C144: 2012-02-02 | D144: 2012-02-13 | E144: Dead | F144: 11
B145: TRUE | C145: 2012-02-02 | D145: 2012-02-06 | F145: 4
B146: TRUE | C146: 2012-02-02 | D146: 2012-02-09 | E146: TO CHECK | F146: 7
B147: TRUE | C147: 2012-02-02 | D147: 2012-02-08 | E147: TO CHECK | F147: 6
B148: TRUE | C148: 2012-02-01 | D148: 2012-02-06 | F148: 5
B149: TRUE | C149: 2012-02-01 | D149: 2012-02-02 | E149: TO CHECK | F149: 1
B150: TRUE | C150: 2012-02-01 | D150: 2012-02-03 | E150: TO CHECK | F150: 2
B151: TRUE | C151: 2012-02-01 | D151: 2012-02-02 | F151: 1
B152: TRUE | C152: 2012-02-01 | D152: 2012-02-01 | E152: TO CHECK | F152: 0
B153: TRUE | C153: 2012-02-01 | D153: 2012-02-01 | E153: TO CHECK | F153: 0
B154: TRUE | C154: 2012-02-01 | D154: 2012-02-02 | F154: 1
B155: TRUE | C155: 2012-01-31 | D155: 2012-02-01 | E155: TO CHECK | F155: 1
B156: TRUE | C156: 2012-01-31 | D156: 2012-02-02 | F156: 2
B157: TRUE | C157: 2012-01-31 | D157: 2012-02-01 | F157: 1
B158: TRUE | C158: 2012-01-31 | D158: 2012-02-01 | F158: 1
B159: TRUE | C159: 2012-01-30 | D159: 2012-02-20 | F159: 21
B160: TRUE | C160: 2012-01-30 | D160: 2012-02-06 | F160: 7
B161: TRUE | C161: 2012-01-30 | D161: 2012-02-13 | F161: 14
B162: TRUE | C162: 2012-01-30 | D162: 2012-02-03 | F162: 4
B163: TRUE | C163: 2012-01-30 | D163: 2012-02-03 | F163: 4
B164: TRUE | C164: 2012-01-30 | D164: 2012-02-06 | E164: Dead | F164: 7
B165: TRUE | C165: 2012-01-30 | D165: 2012-02-05 | F165: 6
B166: TRUE | C166: 2012-01-30 | D166: 2012-02-08 | E166: TO CHECK | F166: 9
B167: TRUE | C167: 2012-01-30 | D167: 2012-01-30 | F167: 0
B168: TRUE | C168: 2012-01-30 | D168: 2012-02-06 | F168: 7
B169: TRUE | C169: 2012-01-30 | D169: 2012-03-05 | F169: 35
B170: TRUE | C170: 2012-01-30 | D170: 2012-01-30 | E170: TO CHECK | F170: 0
B171: TRUE | C171: 2012-01-27 | D171: 2012-01-30 | F171: 3
B172: TRUE | C172: 2012-01-27 | D172: 2012-01-30 | F172: 3
B173: TRUE | C173: 2012-01-27 | D173: 2012-01-27 | F173: 0
B174: TRUE | C174: 2012-01-27 | D174: 2012-02-02 | F174: 6
B175: TRUE | C175: 2012-01-27 | D175: 2012-01-27 | F175: 0
B176: TRUE | C176: 2012-01-27 | D176: 2012-01-30 | E176: TO CHECK | F176: 3
B177: TRUE | C177: 2012-01-27 | D177: 2012-01-27 | F177: 0
B178: TRUE | C178: 2012-01-27 | D178: 2012-01-27 | F178: 0
B179: TRUE | C179: 2012-01-27 | D179: 2012-02-17 | F179: 21
B180: TRUE | C180: 2012-01-26 | D180: 2012-02-02 | F180: 7
B181: TRUE | C181: 2012-01-26 | D181: 2012-02-02 | F181: 7
B182: TRUE | C182: 2012-01-31 | D182: 2012-01-31 | F182: 0
B183: TRUE | C183: 2012-01-26 | D183: 2012-01-27 | F183: 1
B184: TRUE | C184: 2012-01-26 | D184: 2012-01-26 | F184: 0
B185: TRUE | C185: 2012-01-26 | D185: 2012-01-26 | F185: 0
B186: TRUE | C186: 2012-01-26 | D186: 2012-02-06 | E186: Dead | F186: 11
B187: TRUE | C187: 2012-01-26 | D187: 2012-01-26 | F187: 0
B188: TRUE | C188: 2012-01-25 | D188: 2012-01-26 | F188: 1
B189: TRUE | C189: 2012-01-25 | D189: 2012-01-30 | F189: 5
B190: TRUE | C190: 2012-01-25 | D190: 2012-02-06 | F190: 12
B191: TRUE | C191: 2012-01-25 | D191: 2012-01-25 | F191: 0
B192: TRUE | C192: 2012-01-24 | D192: 2012-02-06 | F192: 13
B193: TRUE | C193: 2012-01-24 | D193: 2012-01-25 | F193: 1
B194: TRUE | C194: 2012-01-24 | D194: 2012-01-25 | F194: 1
B195: TRUE | C195: 2012-01-23 | D195: 2012-02-01 | F195: 9
B196: TRUE | C196: 2012-01-23 | D196: 2012-02-16 | F196: =D196-C196 -> 24
B197: TRUE | C197: 2012-01-23 | D197: 2012-01-27 | F197: 4
B198: TRUE | C198: 2012-01-23 | D198: 2012-02-01 | E198: TO CHECK | F198: 9
B199: TRUE | C199: 2012-01-20 | D199: 2012-01-20 | F199: 0
B200: TRUE | C200: 2012-01-20 | D200: 2012-01-25 | F200: 5
... 678 more rows

Sheet MeetingRawData
A1: Subject | B1: Start Time | C1: Duration
B2: 2011-05-25T15:00:00 | C2: 0.5
B3: 2011-06-01T15:00:00 | C3: 0.5
B4: 2011-06-08T15:00:00 | C4: 0.5
B5: 2011-06-15T15:00:00 | C5: 0.5
B6: 2011-06-22T15:00:00 | C6: 0.5
B7: 2011-06-29T15:00:00 | C7: 0.5
B8: 2011-06-30T19:30:00 | C8: 1
B9: 2011-07-05T19:30:00 | C9: 1
B10: 2011-07-06T15:00:00 | C10: 0.5
B11: 2011-07-07T19:30:00 | C11: 1
B12: 2011-07-12T19:30:00 | C12: 1
B13: 2011-07-13T15:00:00 | C13: 0.5
B14: 2011-07-14T19:30:00 | C14: 1
B15: 2011-07-19T19:30:00 | C15: 1
B16: 2011-07-20T15:00:00 | C16: 0.5
B17: 2011-07-21T19:30:00 | C17: 1
B18: 2011-07-26T19:30:00 | C18: 1
B19: 2011-07-27T15:00:00 | C19: 0.5
B20: 2011-07-28T19:30:00 | C20: 1
B21: 2011-07-29T15:00:00 | C21: 0.5
B22: 2011-08-02T19:30:00 | C22: 1
B23: 2011-08-03T15:00:00 | C23: 0.5
B24: 2011-08-04T19:30:00 | C24: 1
B25: 2011-08-05T15:00:00 | C25: 0.5
B26: 2011-08-09T19:30:00 | C26: 1
B27: 2011-08-10T15:00:00 | C27: 0.5
B28: 2011-08-11T19:30:00 | C28: 1
B29: 2011-08-12T15:00:00 | C29: 0.5
B30: 2011-08-16T19:30:00 | C30: 1
B31: 2011-08-17T15:00:00 | C31: 0.5
B32: 2011-08-18T19:30:00 | C32: 1
B33: 2011-08-19T15:00:00 | C33: 0.5
B34: 2011-08-23T19:30:00 | C34: 1
B35: 2011-08-24T15:00:00 | C35: 0.5
B36: 2011-08-25T19:30:00 | C36: 1
B37: 2011-08-26T15:00:00 | C37: 0.5
B38: 2011-08-30T19:30:00 | C38: 1
B39: 2011-08-31T15:00:00 | C39: 0.5
B40: 2011-09-01T19:30:00 | C40: 1
B41: 2011-09-02T14:30:00 | C41: 0.5
B42: 2011-09-02T15:00:00 | C42: 0.5
B43: 2011-09-06T19:30:00 | C43: 1
B44: 2011-09-07T15:00:00 | C44: 0.5
B45: 2011-09-08T19:30:00 | C45: 1
B46: 2011-09-09T15:00:00 | C46: 0.5
B47: 2011-09-13T19:30:00 | C47: 1
B48: 2011-09-14T15:00:00 | C48: 0.5
B49: 2011-09-15T19:30:00 | C49: 1
B50: 2011-09-16T14:30:00 | C50: 0.5
B51: 2011-09-16T15:00:00 | C51: 0.5
B52: 2011-09-20T19:30:00 | C52: 1
B53: 2011-09-21T15:00:00 | C53: 0.5
B54: 2011-09-22T19:30:00 | C54: 1
B55: 2011-09-23T15:00:00 | C55: 0.5
B56: 2011-09-27T19:30:00 | C56: 1
B57: 2011-09-28T15:00:00 | C57: 0.5
B58: 2011-09-29T19:30:00 | C58: 1
B59: 2011-09-30T14:30:00 | C59: 0.5
B60: 2011-09-30T15:00:00 | C60: 0.5
B61: 2011-10-04T19:30:00 | C61: 1
B62: 2011-10-05T15:00:00 | C62: 0.5
B63: 2011-10-07T15:00:00 | C63: 0.5
B64: 2011-10-07T16:15:00 | C64: 0.25
B65: 2011-10-07T19:30:00 | C65: 1
B66: 2011-10-11T19:30:00 | C66: 1
B67: 2011-10-12T15:00:00 | C67: 0.5
B68: 2011-10-13T19:30:00 | C68: 1
B69: 2011-10-14T14:30:00 | C69: 0.5
B70: 2011-10-14T15:00:00 | C70: 0.5
B71: 2011-10-14T16:15:00 | C71: 0.25
B72: 2011-10-19T15:00:00 | C72: 0.5
B73: 2011-10-20T19:30:00 | C73: 1
B74: 2011-10-21T15:00:00 | C74: 0.5
B75: 2011-10-21T16:15:00 | C75: 0.25
B76: 2011-10-25T19:30:00 | C76: 1
B77: 2011-10-26T15:00:00 | C77: 0.5
B78: 2011-10-27T19:30:00 | C78: 1
B79: 2011-10-28T14:30:00 | C79: 0.5
B80: 2011-10-28T15:00:00 | C80: 0.5
B81: 2011-10-28T16:15:00 | C81: 0.25
B82: 2011-10-31T14:00:00 | C82: 1
B83: 2011-11-01T14:00:00 | C83: 1
B84: 2011-11-01T19:30:00 | C84: 1
B85: 2011-11-02T14:00:00 | C85: 1
B86: 2011-11-02T15:00:00 | C86: 0.5
B87: 2011-11-03T14:00:00 | C87: 1
B88: 2011-11-03T19:30:00 | C88: 1
B89: 2011-11-04T14:00:00 | C89: 1
B90: 2011-11-04T15:00:00 | C90: 0.5
B91: 2011-11-04T16:15:00 | C91: 0.25
B92: 2011-11-07T14:00:00 | C92: 1
B93: 2011-11-08T11:00:00 | C93: 3
B94: 2011-11-08T14:00:00 | C94: 1
B95: 2011-11-08T19:30:00 | C95: 1
B96: 2011-11-09T14:00:00 | C96: 1
B97: 2011-11-09T15:00:00 | C97: 0.5
B98: 2011-11-10T14:00:00 | C98: 1
B99: 2011-11-10T18:00:00 | C99: 1
B100: 2011-11-10T19:30:00 | C100: 1
B101: 2011-11-11T14:00:00 | C101: 1
B102: 2011-11-11T14:30:00 | C102: 0.5
B103: 2011-11-11T15:00:00 | C103: 0.5
B104: 2011-11-11T16:15:00 | C104: 0.25
B105: 2011-11-14T14:00:00 | C105: 1
B106: 2011-11-15T14:00:00 | C106: 1
B107: 2011-11-15T19:30:00 | C107: 1
B108: 2011-11-14T14:00:00 | C108: 0.5
B109: 2011-11-16T14:00:00 | C109: 1
B110: 2011-11-16T15:00:00 | C110: 0.5
B111: 2011-11-17T14:00:00 | C111: 1
B112: 2011-11-17T19:30:00 | C112: 1
B113: 2011-11-18T14:00:00 | C113: 1
B114: 2011-11-18T15:00:00 | C114: 0.5
B115: 2011-11-18T16:15:00 | C115: 0.25
B116: 2011-11-21T14:00:00 | C116: 1
B117: 2011-11-22T11:00:00 | C117: 3
B118: 2011-11-22T14:00:00 | C118: 1
B119: 2011-11-22T19:30:00 | C119: 1
B120: 2011-11-23T12:00:00 | C120: 1.5
B121: 2011-11-23T13:00:00 | C121: 0.5
B122: 2011-11-23T14:00:00 | C122: 1
B123: 2011-11-23T15:00:00 | C123: 0.5
B124: 2011-11-24T14:00:00 | C124: 1
B125: 2011-11-24T19:30:00 | C125: 1
B126: 2011-11-25T11:00:00 | C126: 1
B127: 2011-11-25T12:00:00 | C127: 0.5
B128: 2011-11-25T12:30:00 | C128: 1
B129: 2011-11-25T13:30:00 | C129: 1
B130: 2011-11-25T14:00:00 | C130: 1
B131: 2011-11-25T14:30:00 | C131: 0.5
B132: 2011-11-25T15:00:00 | C132: 0.5
B133: 2011-11-25T16:15:00 | C133: 0.25
B134: 2011-11-25T17:30:00 | C134: 1
B135: 2011-11-25T20:00:00 | C135: 0.5
B136: 2011-11-28T12:00:00 | C136: 1
B137: 2011-11-28T14:00:00 | C137: 1
B138: 2011-11-28T14:00:00 | C138: 1
B139: 2011-11-28T17:15:00 | C139: 0.75
B140: 2011-11-29T12:00:00 | C140: 1.5
B141: 2011-11-29T14:00:00 | C141: 1
B142: 2011-11-29T15:00:00 | C142: 1.5
B143: 2011-11-29T16:00:00 | C143: 1
B144: 2011-11-29T17:30:00 | C144: 1
B145: 2011-11-29T19:30:00 | C145: 1
B146: 2011-11-30T13:00:00 | C146: 0.5
B147: 2011-11-30T14:00:00 | C147: 1
B148: 2011-11-30T14:00:00 | C148: 1
B149: 2011-11-30T15:00:00 | C149: 0.5
B150: 2011-11-30T18:00:00 | C150: 0.5
B151: 2011-12-01T14:00:00 | C151: 1
B152: 2011-12-01T16:00:00 | C152: 1.5
B153: 2011-12-01T18:00:00 | C153: 1
B154: 2011-12-01T18:00:00 | C154: 1
B155: 2011-12-01T19:30:00 | C155: 1
B156: 2011-12-02T12:00:00 | C156: 1
B157: 2011-12-02T14:00:00 | C157: 1
B158: 2011-12-02T15:00:00 | C158: 0.5
B159: 2011-12-02T16:15:00 | C159: 0.25
B160: 2011-12-02T18:00:00 | C160: 4
B161: 2011-12-02T19:00:00 | C161: 1
B162: 2011-12-05 | C162: 24
B163: 2011-12-05T14:00:00 | C163: 1
B164: 2011-12-06T11:00:00 | C164: 3
B165: 2011-12-06T14:00:00 | C165: 1
B166: 2011-12-06T19:30:00 | C166: 1
B167: 2011-12-07T14:00:00 | C167: 1
B168: 2011-12-07T15:00:00 | C168: 0.5
B169: 2011-12-08T12:00:00 | C169: 1
B170: 2011-12-08T13:00:00 | C170: 1
B171: 2011-12-08T14:00:00 | C171: 1
B172: 2011-12-08T14:00:00 | C172: 1
B173: 2011-12-08T15:30:00 | C173: 1
B174: 2011-12-08T19:30:00 | C174: 1
B175: 2011-12-09T10:30:00 | C175: 1
B176: 2011-12-09T12:00:00 | C176: 1
B177: 2011-12-09T14:00:00 | C177: 1
B178: 2011-12-09T14:30:00 | C178: 0.5
B179: 2011-12-09T15:00:00 | C179: 0.5
B180: 2011-12-09T16:15:00 | C180: 0.25
B181: 2011-12-09T16:30:00 | C181: 0.75
B182: 2011-12-09T17:00:00 | C182: 1
B183: 2011-12-12T14:00:00 | C183: 1
B184: 2011-12-12T14:00:00 | C184: 1
B185: 2011-12-12T21:00:00 | C185: 1
B186: 2011-12-13T14:00:00 | C186: 1
B187: 2011-12-13T16:30:00 | C187: 1.5
B188: 2011-12-13T19:30:00 | C188: 1
B189: 2011-12-14T11:00:00 | C189: 1
B190: 2011-12-14T13:00:00 | C190: 0.5
B191: 2011-12-14T14:00:00 | C191: 1
B192: 2011-12-14T14:00:00 | C192: 1
B193: 2011-12-14T15:00:00 | C193: 0.5
B194: 2011-12-14T17:00:00 | C194: 1
B195: 2011-12-15T12:00:00 | C195: 1
B196: 2011-12-15T13:00:00 | C196: 1
B197: 2011-12-15T14:00:00 | C197: 5
B198: 2011-12-15T14:00:00 | C198: 1
B199: 2011-12-15T16:00:00 | C199: 0.5
B200: 2011-12-15T16:30:00 | C200: 0.5
... 656 more rows

Sheet Statistics
B1: Axis Name | C1: Week Start Date | D1: Week End Date | E1: In Tasks | F1: Out Tasks | G1: Tasks Balance | H1: Meetings Duration, hrs
B2: Earlier | C2: 0 | D2: =LastUpdated-WEEKDAY(LastUpdated,3)-7*A3-1 -> 2012-01-29 | E2: =COUNTIFS(TaskRawData!C:C,"<="&D2,TaskRawData!C:C,">="&C2) -> 344 | F2: =COUNTIFS(TaskRawData!D:D,"<="&D2,TaskRawData!D:D,">="&C2) -> 304 | G2: =E2-F2 -> 40 | H2: =SUMIFS(MeetingRawData!C:C,MeetingRawData!B:B,"<="&D2,MeetingRawData!B:B,">="&C2) -> 361.1666667
A3: 16 | B3: =TEXT(A3,"?") & " week(s) ago" -> 16 week(s) ago | C3: =D2+1 -> 2012-01-30 | D3: =C3+6 -> 2012-02-05 | E3: =COUNTIFS(TaskRawData!C:C,"<="&D3,TaskRawData!C:C,">="&C3) -> 37 | F3: =COUNTIFS(TaskRawData!D:D,"<="&D3,TaskRawData!D:D,">="&C3) -> 37 | G3: =E3-F3+G2 -> 40 | H3: =SUMIFS(MeetingRawData!C:C,MeetingRawData!B:B,"<="&D3,MeetingRawData!B:B,">="&C3) -> 28.08333333
A4: =A3-1 -> 15 | B4: 15 week(s) ago | C4: =C3+7 -> 2012-02-06 | D4: 2012-02-12 | E4: =COUNTIFS(TaskRawData!C:C,"<="&D4,TaskRawData!C:C,">="&C4) -> 31 | F4: =COUNTIFS(TaskRawData!D:D,"<="&D4,TaskRawData!D:D,">="&C4) -> 39 | G4: =E4-F4+G3 -> 32 | H4: =SUMIFS(MeetingRawData!C:C,MeetingRawData!B:B,"<="&D4,MeetingRawData!B:B,">="&C4) -> 36.16666667
A5: 14 | B5: 14 week(s) ago | C5: 2012-02-13 | D5: 2012-02-19 | E5: =COUNTIFS(TaskRawData!C:C,"<="&D5,TaskRawData!C:C,">="&C5) -> 44 | F5: =COUNTIFS(TaskRawData!D:D,"<="&D5,TaskRawData!D:D,">="&C5) -> 40 | G5: 36 | H5: =SUMIFS(MeetingRawData!C:C,MeetingRawData!B:B,"<="&D5,MeetingRawData!B:B,">="&C5) -> 32.16666667
A6: 13 | B6: =TEXT(A6,"?") & " week(s) ago" -> 13 week(s) ago | C6: 2012-02-20 | D6: =C6+6 -> 2012-02-26 | E6: =COUNTIFS(TaskRawData!C:C,"<="&D6,TaskRawData!C:C,">="&C6) -> 33 | F6: =COUNTIFS(TaskRawData!D:D,"<="&D6,TaskRawData!D:D,">="&C6) -> 35 | G6: =E6-F6+G5 -> 34 | H6: =SUMIFS(MeetingRawData!C:C,MeetingRawData!B:B,"<="&D6,MeetingRawData!B:B,">="&C6) -> 36.16666667
A7: 12 | B7: 12 week(s) ago | C7: 2012-02-27 | D7: 2012-03-04 | E7: =COUNTIFS(TaskRawData!C:C,"<="&D7,TaskRawData!C:C,">="&C7) -> 26 | F7: =COUNTIFS(TaskRawData!D:D,"<="&D7,TaskRawData!D:D,">="&C7) -> 24 | G7: 36 | H7: =SUMIFS(MeetingRawData!C:C,MeetingRawData!B:B,"<="&D7,MeetingRawData!B:B,">="&C7) -> 50.66666667
A8: 11 | B8: 11 week(s) ago | C8: 2012-03-05 | D8: 2012-03-11 | E8: =COUNTIFS(TaskRawData!C:C,"<="&D8,TaskRawData!C:C,">="&C8) -> 31 | F8: =COUNTIFS(TaskRawData!D:D,"<="&D8,TaskRawData!D:D,">="&C8) -> 27 | G8: 40 | H8: =SUMIFS(MeetingRawData!C:C,MeetingRawData!B:B,"<="&D8,MeetingRawData!B:B,">="&C8) -> 31.33333333
A9: 10 | B9: 10 week(s) ago | C9: 2012-03-12 | D9: 2012-03-18 | E9: =COUNTIFS(TaskRawData!C:C,"<="&D9,TaskRawData!C:C,">="&C9) -> 39 | F9: =COUNTIFS(TaskRawData!D:D,"<="&D9,TaskRawData!D:D,">="&C9) -> 30 | G9: 49 | H9: =SUMIFS(MeetingRawData!C:C,MeetingRawData!B:B,"<="&D9,MeetingRawData!B:B,">="&C9) -> 21.91666667
A10: 9 | B10: 9 week(s) ago | C10: 2012-03-19 | D10: 2012-03-25 | E10: =COUNTIFS(TaskRawData!C:C,"<="&D10,TaskRawData!C:C,">="&C10) -> 44 | F10: =COUNTIFS(TaskRawData!D:D,"<="&D10,TaskRawData!D:D,">="&C10) -> 46 | G10: 47 | H10: =SUMIFS(MeetingRawData!C:C,MeetingRawData!B:B,"<="&D10,MeetingRawData!B:B,">="&C10) -> 42.91666667
A11: 8 | B11: 8 week(s) ago | C11: 2012-03-26 | D11: 2012-04-01 | E11: =COUNTIFS(TaskRawData!C:C,"<="&D11,TaskRawData!C:C,">="&C11) -> 32 | F11: =COUNTIFS(TaskRawData!D:D,"<="&D11,TaskRawData!D:D,">="&C11) -> 39 | G11: 40 | H11: =SUMIFS(MeetingRawData!C:C,MeetingRawData!B:B,"<="&D11,MeetingRawData!B:B,">="&C11) -> 35.91666667
A12: 7 | B12: 7 week(s) ago | C12: 2012-04-02 | D12: 2012-04-08 | E12: =COUNTIFS(TaskRawData!C:C,"<="&D12,TaskRawData!C:C,">="&C12) -> 28 | F12: =COUNTIFS(TaskRawData!D:D,"<="&D12,TaskRawData!D:D,">="&C12) -> 33 | G12: 35 | H12: =SUMIFS(MeetingRawData!C:C,MeetingRawData!B:B,"<="&D12,MeetingRawData!B:B,">="&C12) -> 34.66666667
A13: 6 | B13: 6 week(s) ago | C13: 2012-04-09 | D13: 2012-04-15 | E13: =COUNTIFS(TaskRawData!C:C,"<="&D13,TaskRawData!C:C,">="&C13) -> 25 | F13: =COUNTIFS(TaskRawData!D:D,"<="&D13,TaskRawData!D:D,">="&C13) -> 22 | G13: 38 | H13: =SUMIFS(MeetingRawData!C:C,MeetingRawData!B:B,"<="&D13,MeetingRawData!B:B,">="&C13) -> 40.41666667
A14: 5 | B14: 5 week(s) ago | C14: 2012-04-16 | D14: 2012-04-22 | E14: =COUNTIFS(TaskRawData!C:C,"<="&D14,TaskRawData!C:C,">="&C14) -> 23 | F14: =COUNTIFS(TaskRawData!D:D,"<="&D14,TaskRawData!D:D,">="&C14) -> 22 | G14: 39 | H14: =SUMIFS(MeetingRawData!C:C,MeetingRawData!B:B,"<="&D14,MeetingRawData!B:B,">="&C14) -> 53.16666667
A15: 4 | B15: 4 week(s) ago | C15: 2012-04-23 | D15: 2012-04-29 | E15: =COUNTIFS(TaskRawData!C:C,"<="&D15,TaskRawData!C:C,">="&C15) -> 49 | F15: =COUNTIFS(TaskRawData!D:D,"<="&D15,TaskRawData!D:D,">="&C15) -> 51 | G15: 37 | H15: =SUMIFS(MeetingRawData!C:C,MeetingRawData!B:B,"<="&D15,MeetingRawData!B:B,">="&C15) -> 22.41666667
A16: 3 | B16: 3 week(s) ago | C16: 2012-04-30 | D16: 2012-05-06 | E16: =COUNTIFS(TaskRawData!C:C,"<="&D16,TaskRawData!C:C,">="&C16) -> 24 | F16: =COUNTIFS(TaskRawData!D:D,"<="&D16,TaskRawData!D:D,">="&C16) -> 27 | G16: 34 | H16: =SUMIFS(MeetingRawData!C:C,MeetingRawData!B:B,"<="&D16,MeetingRawData!B:B,">="&C16) -> 32.91666667
A17: 2 | B17: 2 week(s) ago | C17: 2012-05-07 | D17: 2012-05-13 | E17: =COUNTIFS(TaskRawData!C:C,"<="&D17,TaskRawData!C:C,">="&C17) -> 25 | F17: =COUNTIFS(TaskRawData!D:D,"<="&D17,TaskRawData!D:D,">="&C17) -> 31 | G17: 28 | H17: =SUMIFS(MeetingRawData!C:C,MeetingRawData!B:B,"<="&D17,MeetingRawData!B:B,">="&C17) -> 16.41666667
A18: 1 | B18: 1 week(s) ago | C18: 2012-05-14 | D18: 2012-05-20 | E18: =COUNTIFS(TaskRawData!C:C,"<="&D18,TaskRawData!C:C,">="&C18) -> 28 | F18: =COUNTIFS(TaskRawData!D:D,"<="&D18,TaskRawData!D:D,">="&C18) -> 28 | G18: 28 | H18: =SUMIFS(MeetingRawData!C:C,MeetingRawData!B:B,"<="&D18,MeetingRawData!B:B,">="&C18) -> 26.41666667
A19: 0 | B19: week(s) ago | C19: 2012-05-21 | D19: 2012-05-27 | E19: =COUNTIFS(TaskRawData!C:C,"<="&D19,TaskRawData!C:C,">="&C19) -> 14 | F19: =COUNTIFS(TaskRawData!D:D,"<="&D19,TaskRawData!D:D,">="&C19) -> 9 | G19: 33 | H19: =SUMIFS(MeetingRawData!C:C,MeetingRawData!B:B,"<="&D19,MeetingRawData!B:B,">="&C19) -> 13.25
B21: Completed Life-Time distribution
B23: Bin | C23: Number of tasks | D23: Cumulative | E23: Number of tasks
B24: -1
B25: 0 | C25: =E25/$E$32 -> 0.2573529412 | D25: =C25+D24 -> 0.2573529412 | E25: =COUNTIFS(TaskRawData!F:F,"<="&B25,TaskRawData!F:F,">"&B24,TaskRawData!B:B,"="&TRUE) -> 210
B26: 1 | C26: 0.2083333333 | D26: =C26+D25 -> 0.4656862745 | E26: =COUNTIFS(TaskRawData!F:F,"<="&B26,TaskRawData!F:F,">"&B25,TaskRawData!B:B,"="&TRUE) -> 170
B27: 5 | C27: 0.2463235294 | D27: 0.7120098039 | E27: =COUNTIFS(TaskRawData!F:F,"<="&B27,TaskRawData!F:F,">"&B26,TaskRawData!B:B,"="&TRUE) -> 201
B28: 10 | C28: 0.1421568627 | D28: 0.8541666667 | E28: =COUNTIFS(TaskRawData!F:F,"<="&B28,TaskRawData!F:F,">"&B27,TaskRawData!B:B,"="&TRUE) -> 116
B29: 20 | C29: 0.09068627451 | D29: 0.9448529412 | E29: =COUNTIFS(TaskRawData!F:F,"<="&B29,TaskRawData!F:F,">"&B28,TaskRawData!B:B,"="&TRUE) -> 74
B30: 50 | C30: 0.05514705882 | D30: 1 | E30: =COUNTIFS(TaskRawData!F:F,"<="&B30,TaskRawData!F:F,">"&B29,TaskRawData!B:B,"="&TRUE) -> 45
B32: Total | E32: =SUM(E25:E31) -> 816
B35: Pending Life-Time distribution
B37: Bin | C37: Number of tasks | D37: Cumulative | E37: Number of tasks
B38: -1
B39: 1 | C39: =E39/$E$46 -> 0 | D39: =C39+D38 -> 0 | E39: =COUNTIFS(TaskRawData!F:F,"<="&B39,TaskRawData!F:F,">"&B38,TaskRawData!B:B,"="&FALSE) -> 0
B40: 7 | C40: =E40/$E$32 -> 0 | D40: =C40+D39 -> 0 | E40: =COUNTIFS(TaskRawData!F:F,"<="&B40,TaskRawData!F:F,">"&B39,TaskRawData!B:B,"="&FALSE) -> 0
B41: 14 | C41: 0 | D41: 0 | E41: =COUNTIFS(TaskRawData!F:F,"<="&B41,TaskRawData!F:F,">"&B40,TaskRawData!B:B,"="&FALSE) -> 0
B42: 28 | C42: 0 | D42: 0 | E42: =COUNTIFS(TaskRawData!F:F,"<="&B42,TaskRawData!F:F,">"&B41,TaskRawData!B:B,"="&FALSE) -> 0
B43: 56 | C43: 0 | D43: 0 | E43: =COUNTIFS(TaskRawData!F:F,"<="&B43,TaskRawData!F:F,">"&B42,TaskRawData!B:B,"="&FALSE) -> 0
B44: 500 | C44: 0.04044117647 | D44: 0.04044117647 | E44: =COUNTIFS(TaskRawData!F:F,"<="&B44,TaskRawData!F:F,">"&B43,TaskRawData!B:B,"="&FALSE) -> 33
B46: Total | E46: =SUM(E39:E45) -> 33
B49: Week performance
B51: Bin | C51: Number of tasks | D51: Cumulative | E51: Number of weeks
B52: -1
B53: 10 | C53: =E53/$E$46 -> 0.0303030303 | D53: =C53+D52 -> 0.0303030303 | E53: =COUNTIFS($F$3:$F$19,"<="&B53,$F$3:$F$19,">"&B52) -> 1
B54: 30 | C54: =E54/$E$32 -> 0.008578431373 | D54: =C54+D53 -> 0.03888146168 | E54: 7
B55: 50 | C55: 0.009803921569 | D55: 0.04868538324 | E55: 8
B56: 70 | C56: 0.001225490196 | D56: 0.04991087344 | E56: 1
B57: 100 | C57: 0 | D57: 0.04991087344 | E57: 0
B58: 100 | C58: 0 | D58: 0.04991087344 | E58: 0
H59: Task Balance | L59: Out Tasks
B60: Daily stats | H60: Ra | I60: =AVERAGE(H63:H106) -> 2.068181818 | J60: Av | K60: =AVERAGE(F62:F106) -> 36.22222222 | L60: Ra | M60: =AVERAGE(L63:L106) -> 4.295454545 | N60: Av | O60: =AVERAGE(M63:M106) -> 5.534090909
A61: DOW | B61: Axis Name | C61: Date | D61: In Tasks | E61: Out Tasks | F61: Tasks Balance | G61: Meetings Duration, hrs | H61: R | I61: LCL | J61: UCL | K61: CL | L61: R | M61: Av | N61: Inflow UCL
A62: =WEEKDAY(C62,2) -> 1 | B62: =TEXT(C62,"дд-МММ, ДДД") -> 26-мар, Пн | C62: =LastUpdated-WEEKDAY(LastUpdated,3)-56 -> 2012-03-26 | D62: =COUNTIFS(TaskRawData!C:C,">="&C62,TaskRawData!C:C,"<"&C63) -> 7 | E62: =COUNTIFS(TaskRawData!D:D,">="&C62,TaskRawData!D:D,"<"&C63) -> 18 | F62: =D62-E62+G10 -> 36 | G62: =SUMIFS(MeetingRawData!C:C,MeetingRawData!B:B,">"&C62,MeetingRawData!B:B,"<"&(C62+1)) -> 5.833333333
A63: =WEEKDAY(C63,2) -> 2 | B63: =TEXT(C63,"дд-МММ, ДДД") -> 27-мар, Вт | C63: =C62+1 -> 2012-03-27 | D63: =COUNTIFS(TaskRawData!C:C,">="&C63,TaskRawData!C:C,"<"&C64) -> 3 | E63: =COUNTIFS(TaskRawData!D:D,">="&C63,TaskRawData!D:D,"<"&C64) -> 1 | F63: =D63-E63+F62 -> 38 | G63: =SUMIFS(MeetingRawData!C:C,MeetingRawData!B:B,">"&C63,MeetingRawData!B:B,"<"&(C63+1)) -> 4.833333333 | H63: =ABS(F63-F62) -> 2 | I63: =K63-2.66*$I$60 -> 30.72085859 | J63: =K63+2.66*$I$60 -> 41.72358586 | K63: =$K$60 -> 36.22222222 | L63: =ABS(D62-D63) -> 4 | M63: =(D63+D62)/2 -> 5 | N63: =$O$60+2.66*$M$60 -> 16.96
A64: 3 | B64: 28-мар, Ср | C64: =C63+1 -> 2012-03-28 | D64: =COUNTIFS(TaskRawData!C:C,">="&C64,TaskRawData!C:C,"<"&C65) -> 8 | E64: =COUNTIFS(TaskRawData!D:D,">="&C64,TaskRawData!D:D,"<"&C65) -> 4 | F64: =D64-E64+F63 -> 42 | G64: =SUMIFS(MeetingRawData!C:C,MeetingRawData!B:B,">"&C64,MeetingRawData!B:B,"<"&(C64+1)) -> 7.333333333 | H64: =ABS(F64-F63) -> 4 | I64: =K64-2.66*$I$60 -> 30.72085859 | J64: =K64+2.66*$I$60 -> 41.72358586 | K64: 36.22222222 | L64: =ABS(D63-D64) -> 5 | M64: =(D64+D63)/2 -> 5.5 | N64: =$O$60+2.66*$M$60 -> 16.96
A65: 4 | B65: 29-мар, Чт | C65: 2012-03-29 | D65: =COUNTIFS(TaskRawData!C:C,">="&C65,TaskRawData!C:C,"<"&C66) -> 6 | E65: =COUNTIFS(TaskRawData!D:D,">="&C65,TaskRawData!D:D,"<"&C66) -> 9 | F65: 39 | G65: =SUMIFS(MeetingRawData!C:C,MeetingRawData!B:B,">"&C65,MeetingRawData!B:B,"<"&(C65+1)) -> 3.583333333 | H65: 3 | I65: 30.72085859 | J65: 41.72358586 | K65: 36.22222222 | L65: 2 | M65: 7 | N65: 16.96
A66: 5 | B66: 30-мар, Пт | C66: 2012-03-30 | D66: =COUNTIFS(TaskRawData!C:C,">="&C66,TaskRawData!C:C,"<"&C67) -> 8 | E66: =COUNTIFS(TaskRawData!D:D,">="&C66,TaskRawData!D:D,"<"&C67) -> 7 | F66: 40 | G66: =SUMIFS(MeetingRawData!C:C,MeetingRawData!B:B,">"&C66,MeetingRawData!B:B,"<"&(C66+1)) -> 14.33333333 | H66: 1 | I66: 30.72085859 | J66: 41.72358586 | K66: 36.22222222 | L66: 2 | M66: 7 | N66: 16.96
A67: 1 | B67: 02-апр, Пн | C67: =C66+3 -> 2012-04-02 | D67: =COUNTIFS(TaskRawData!C:C,">="&C67,TaskRawData!C:C,"<"&C68) -> 7 | E67: =COUNTIFS(TaskRawData!D:D,">="&C67,TaskRawData!D:D,"<"&C68) -> 8 | F67: 39 | G67: =SUMIFS(MeetingRawData!C:C,MeetingRawData!B:B,">"&C67,MeetingRawData!B:B,"<"&(C67+1)) -> 4.333333333 | H67: 1 | I67: 30.72085859 | J67: 41.72358586 | K67: 36.22222222 | L67: 1 | M67: 7.5 | N67: 16.96
A68: 2 | B68: 03-апр, Вт | C68: =C67+1 -> 2012-04-03 | D68: =COUNTIFS(TaskRawData!C:C,">="&C68,TaskRawData!C:C,"<"&C69) -> 4 | E68: =COUNTIFS(TaskRawData!D:D,">="&C68,TaskRawData!D:D,"<"&C69) -> 5 | F68: 38 | G68: =SUMIFS(MeetingRawData!C:C,MeetingRawData!B:B,">"&C68,MeetingRawData!B:B,"<"&(C68+1)) -> 10.83333333 | H68: 1 | I68: 30.72085859 | J68: 41.72358586 | K68: 36.22222222 | L68: 3 | M68: 5.5 | N68: 16.96
A69: 3 | B69: 04-апр, Ср | C69: 2012-04-04 | D69: =COUNTIFS(TaskRawData!C:C,">="&C69,TaskRawData!C:C,"<"&C70) -> 2 | E69: =COUNTIFS(TaskRawData!D:D,">="&C69,TaskRawData!D:D,"<"&C70) -> 5 | F69: 35 | G69: =SUMIFS(MeetingRawData!C:C,MeetingRawData!B:B,">"&C69,MeetingRawData!B:B,"<"&(C69+1)) -> 7.083333333 | H69: 3 | I69: 30.72085859 | J69: 41.72358586 | K69: 36.22222222 | L69: 2 | M69: 3 | N69: 16.96
A70: 4 | B70: 05-апр, Чт | C70: 2012-04-05 | D70: =COUNTIFS(TaskRawData!C:C,">="&C70,TaskRawData!C:C,"<"&C71) -> 7 | E70: =COUNTIFS(TaskRawData!D:D,">="&C70,TaskRawData!D:D,"<"&C71) -> 3 | F70: 39 | G70: =SUMIFS(MeetingRawData!C:C,MeetingRawData!B:B,">"&C70,MeetingRawData!B:B,"<"&(C70+1)) -> 6.083333333 | H70: 4 | I70: 30.72085859 | J70: 41.72358586 | K70: 36.22222222 | L70: 5 | M70: 4.5 | N70: 16.96
A71: 5 | B71: 06-апр, Пт | C71: 2012-04-06 | D71: =COUNTIFS(TaskRawData!C:C,">="&C71,TaskRawData!C:C,"<"&C72) -> 8 | E71: =COUNTIFS(TaskRawData!D:D,">="&C71,TaskRawData!D:D,"<"&C72) -> 12 | F71: 35 | G71: =SUMIFS(MeetingRawData!C:C,MeetingRawData!B:B,">"&C71,MeetingRawData!B:B,"<"&(C71+1)) -> 6.333333333 | H71: 4 | I71: 30.72085859 | J71: 41.72358586 | K71: 36.22222222 | L71: 1 | M71: 7.5 | N71: 16.96
A72: 1 | B72: 09-апр, Пн | C72: =C71+3 -> 2012-04-09 | D72: =COUNTIFS(TaskRawData!C:C,">="&C72,TaskRawData!C:C,"<"&C73) -> 12 | E72: =COUNTIFS(TaskRawData!D:D,">="&C72,TaskRawData!D:D,"<"&C73) -> 9 | F72: 38 | G72: =SUMIFS(MeetingRawData!C:C,MeetingRawData!B:B,">"&C72,MeetingRawData!B:B,"<"&(C72+1)) -> 4.833333333 | H72: 3 | I72: 30.72085859 | J72: 41.72358586 | K72: 36.22222222 | L72: 4 | M72: 10 | N72: 16.96
A73: 2 | B73: 10-апр, Вт | C73: 2012-04-10 | D73: =COUNTIFS(TaskRawData!C:C,">="&C73,TaskRawData!C:C,"<"&C74) -> 0 | E73: =COUNTIFS(TaskRawData!D:D,">="&C73,TaskRawData!D:D,"<"&C74) -> 0 | F73: 38 | G73: =SUMIFS(MeetingRawData!C:C,MeetingRawData!B:B,">"&C73,MeetingRawData!B:B,"<"&(C73+1)) -> 18.33333333 | H73: 0 | I73: 30.72085859 | J73: 41.72358586 | K73: 36.22222222 | L73: 12 | M73: 6 | N73: 16.96
A74: 3 | B74: 11-апр, Ср | C74: 2012-04-11 | D74: =COUNTIFS(TaskRawData!C:C,">="&C74,TaskRawData!C:C,"<"&C75) -> 0 | E74: =COUNTIFS(TaskRawData!D:D,">="&C74,TaskRawData!D:D,"<"&C75) -> 0 | F74: 38 | G74: =SUMIFS(MeetingRawData!C:C,MeetingRawData!B:B,">"&C74,MeetingRawData!B:B,"<"&(C74+1)) -> 2.333333333 | H74: 0 | I74: 30.72085859 | J74: 41.72358586 | K74: 36.22222222 | L74: 0 | M74: 0 | N74: 16.96
A75: 4 | B75: 12-апр, Чт | C75: 2012-04-12 | D75: =COUNTIFS(TaskRawData!C:C,">="&C75,TaskRawData!C:C,"<"&C76) -> 7 | E75: =COUNTIFS(TaskRawData!D:D,">="&C75,TaskRawData!D:D,"<"&C76) -> 10 | F75: 35 | G75: =SUMIFS(MeetingRawData!C:C,MeetingRawData!B:B,">"&C75,MeetingRawData!B:B,"<"&(C75+1)) -> 10.08333333 | H75: 3 | I75: 30.72085859 | J75: 41.72358586 | K75: 36.22222222 | L75: 7 | M75: 3.5 | N75: 16.96
A76: 5 | B76: 13-апр, Пт | C76: 2012-04-13 | D76: =COUNTIFS(TaskRawData!C:C,">="&C76,TaskRawData!C:C,"<"&C77) -> 6 | E76: =COUNTIFS(TaskRawData!D:D,">="&C76,TaskRawData!D:D,"<"&C77) -> 3 | F76: 38 | G76: =SUMIFS(MeetingRawData!C:C,MeetingRawData!B:B,">"&C76,MeetingRawData!B:B,"<"&(C76+1)) -> 4.833333333 | H76: 3 | I76: 30.72085859 | J76: 41.72358586 | K76: 36.22222222 | L76: 1 | M76: 6.5 | N76: 16.96
A77: 1 | B77: 16-апр, Пн | C77: =C76+3 -> 2012-04-16 | D77: =COUNTIFS(TaskRawData!C:C,">="&C77,TaskRawData!C:C,"<"&C78) -> 4 | E77: =COUNTIFS(TaskRawData!D:D,">="&C77,TaskRawData!D:D,"<"&C78) -> 6 | F77: 36 | G77: =SUMIFS(MeetingRawData!C:C,MeetingRawData!B:B,">"&C77,MeetingRawData!B:B,"<"&(C77+1)) -> 7.833333333 | H77: 2 | I77: 30.72085859 | J77: 41.72358586 | K77: 36.22222222 | L77: 2 | M77: 5 | N77: 16.96
A78: 2 | B78: 17-апр, Вт | C78: 2012-04-17 | D78: =COUNTIFS(TaskRawData!C:C,">="&C78,TaskRawData!C:C,"<"&C79) -> 0 | E78: =COUNTIFS(TaskRawData!D:D,">="&C78,TaskRawData!D:D,"<"&C79) -> 0 | F78: 36 | G78: =SUMIFS(MeetingRawData!C:C,MeetingRawData!B:B,">"&C78,MeetingRawData!B:B,"<"&(C78+1)) -> 9.833333333 | H78: 0 | I78: 30.72085859 | J78: 41.72358586 | K78: 36.22222222 | L78: 4 | M78: 2 | N78: 16.96
A79: 3 | B79: 18-апр, Ср | C79: 2012-04-18 | D79: =COUNTIFS(TaskRawData!C:C,">="&C79,TaskRawData!C:C,"<"&C80) -> 1 | E79: =COUNTIFS(TaskRawData!D:D,">="&C79,TaskRawData!D:D,"<"&C80) -> 0 | F79: 37 | G79: =SUMIFS(MeetingRawData!C:C,MeetingRawData!B:B,">"&C79,MeetingRawData!B:B,"<"&(C79+1)) -> 2.333333333 | H79: 1 | I79: 30.72085859 | J79: 41.72358586 | K79: 36.22222222 | L79: 1 | M79: 0.5 | N79: 16.96
A80: 4 | B80: 19-апр, Чт | C80: 2012-04-19 | D80: =COUNTIFS(TaskRawData!C:C,">="&C80,TaskRawData!C:C,"<"&C81) -> 13 | E80: =COUNTIFS(TaskRawData!D:D,">="&C80,TaskRawData!D:D,"<"&C81) -> 13 | F80: 37 | G80: =SUMIFS(MeetingRawData!C:C,MeetingRawData!B:B,">"&C80,MeetingRawData!B:B,"<"&(C80+1)) -> 4.583333333 | H80: 0 | I80: 30.72085859 | J80: 41.72358586 | K80: 36.22222222 | L80: 12 | M80: 7 | N80: 16.96
A81: 5 | B81: 20-апр, Пт | C81: 2012-04-20 | D81: =COUNTIFS(TaskRawData!C:C,">="&C81,TaskRawData!C:C,"<"&C82) -> 5 | E81: =COUNTIFS(TaskRawData!D:D,">="&C81,TaskRawData!D:D,"<"&C82) -> 3 | F81: 39 | G81: =SUMIFS(MeetingRawData!C:C,MeetingRawData!B:B,">"&C81,MeetingRawData!B:B,"<"&(C81+1)) -> 4.583333333 | H81: 2 | I81: 30.72085859 | J81: 41.72358586 | K81: 36.22222222 | L81: 8 | M81: 9 | N81: 16.96
A82: 1 | B82: 23-апр, Пн | C82: =C81+3 -> 2012-04-23 | D82: =COUNTIFS(TaskRawData!C:C,">="&C82,TaskRawData!C:C,"<"&C83) -> 21 | E82: =COUNTIFS(TaskRawData!D:D,">="&C82,TaskRawData!D:D,"<"&C83) -> 7 | F82: 53 | G82: =SUMIFS(MeetingRawData!C:C,MeetingRawData!B:B,">"&C82,MeetingRawData!B:B,"<"&(C82+1)) -> 4.833333333 | H82: 14 | I82: 30.72085859 | J82: 41.72358586 | K82: 36.22222222 | L82: 16 | M82: 13 | N82: 16.96
A83: 2 | B83: 24-апр, Вт | C83: 2012-04-24 | D83: =COUNTIFS(TaskRawData!C:C,">="&C83,TaskRawData!C:C,"<"&C84) -> 6 | E83: =COUNTIFS(TaskRawData!D:D,">="&C83,TaskRawData!D:D,"<"&C84) -> 8 | F83: 51 | G83: =SUMIFS(MeetingRawData!C:C,MeetingRawData!B:B,">"&C83,MeetingRawData!B:B,"<"&(C83+1)) -> 3.833333333 | H83: 2 | I83: 30.72085859 | J83: 41.72358586 | K83: 36.22222222 | L83: 15 | M83: 13.5 | N83: 16.96
A84: 3 | B84: 25-апр, Ср | C84: 2012-04-25 | D84: =COUNTIFS(TaskRawData!C:C,">="&C84,TaskRawData!C:C,"<"&C85) -> 8 | E84: =COUNTIFS(TaskRawData!D:D,">="&C84,TaskRawData!D:D,"<"&C85) -> 12 | F84: 47 | G84: =SUMIFS(MeetingRawData!C:C,MeetingRawData!B:B,">"&C84,MeetingRawData!B:B,"<"&(C84+1)) -> 3.333333333 | H84: 4 | I84: 30.72085859 | J84: 41.72358586 | K84: 36.22222222 | L84: 2 | M84: 7 | N84: 16.96
A85: 4 | B85: 26-апр, Чт | C85: 2012-04-26 | D85: =COUNTIFS(TaskRawData!C:C,">="&C85,TaskRawData!C:C,"<"&C86) -> 7 | E85: =COUNTIFS(TaskRawData!D:D,">="&C85,TaskRawData!D:D,"<"&C86) -> 7 | F85: 47 | G85: =SUMIFS(MeetingRawData!C:C,MeetingRawData!B:B,">"&C85,MeetingRawData!B:B,"<"&(C85+1)) -> 4.083333333 | H85: 0 | I85: 30.72085859 | J85: 41.72358586 | K85: 36.22222222 | L85: 1 | M85: 7.5 | N85: 16.96
A86: 5 | B86: 27-апр, Пт | C86: 2012-04-27 | D86: =COUNTIFS(TaskRawData!C:C,">="&C86,TaskRawData!C:C,"<"&C87) -> 7 | E86: =COUNTIFS(TaskRawData!D:D,">="&C86,TaskRawData!D:D,"<"&C87) -> 17 | F86: 37 | G86: =SUMIFS(MeetingRawData!C:C,MeetingRawData!B:B,">"&C86,MeetingRawData!B:B,"<"&(C86+1)) -> 6.333333333 | H86: 10 | I86: 30.72085859 | J86: 41.72358586 | K86: 36.22222222 | L86: 0 | M86: 7 | N86: 16.96
A87: 1 | B87: 30-апр, Пн | C87: =C86+3 -> 2012-04-30 | D87: =COUNTIFS(TaskRawData!C:C,">="&C87,TaskRawData!C:C,"<"&C88) -> 0 | E87: =COUNTIFS(TaskRawData!D:D,">="&C87,TaskRawData!D:D,"<"&C88) -> 0 | F87: =D87-E87+F86 -> 37 | G87: =SUMIFS(MeetingRawData!C:C,MeetingRawData!B:B,">"&C87,MeetingRawData!B:B,"<"&(C87+1)) -> 2.333333333 | H87: 0 | I87: 30.72085859 | J87: 41.72358586 | K87: 36.22222222 | L87: 7 | M87: 3.5 | N87: 16.96
A88: 2 | B88: 01-май, Вт | C88: =C87+1 -> 2012-05-01 | D88: =COUNTIFS(TaskRawData!C:C,">="&C88,TaskRawData!C:C,"<"&C89) -> 0 | E88: =COUNTIFS(TaskRawData!D:D,">="&C88,TaskRawData!D:D,"<"&C89) -> 0 | F88: 37 | G88: =SUMIFS(MeetingRawData!C:C,MeetingRawData!B:B,">"&C88,MeetingRawData!B:B,"<"&(C88+1)) -> 9.833333333 | H88: 0 | I88: 30.72085859 | J88: 41.72358586 | K88: 36.22222222 | L88: 0 | M88: 0 | N88: 16.96
A89: 3 | B89: 02-май, Ср | C89: 2012-05-02 | D89: =COUNTIFS(TaskRawData!C:C,">="&C89,TaskRawData!C:C,"<"&C90) -> 14 | E89: =COUNTIFS(TaskRawData!D:D,">="&C89,TaskRawData!D:D,"<"&C90) -> 14 | F89: 37 | G89: =SUMIFS(MeetingRawData!C:C,MeetingRawData!B:B,">"&C89,MeetingRawData!B:B,"<"&(C89+1)) -> 6.833333333 | H89: 0 | I89: 30.72085859 | J89: 41.72358586 | K89: 36.22222222 | L89: 14 | M89: 7 | N89: 16.96
A90: 4 | B90: 03-май, Чт | C90: 2012-05-03 | D90: =COUNTIFS(TaskRawData!C:C,">="&C90,TaskRawData!C:C,"<"&C91) -> 4 | E90: =COUNTIFS(TaskRawData!D:D,">="&C90,TaskRawData!D:D,"<"&C91) -> 7 | F90: 34 | G90: =SUMIFS(MeetingRawData!C:C,MeetingRawData!B:B,">"&C90,MeetingRawData!B:B,"<"&(C90+1)) -> 7.583333333 | H90: 3 | I90: 30.72085859 | J90: 41.72358586 | K90: 36.22222222 | L90: 10 | M90: 9 | N90: 16.96
A91: 5 | B91: 04-май, Пт | C91: 2012-05-04 | D91: =COUNTIFS(TaskRawData!C:C,">="&C91,TaskRawData!C:C,"<"&C92) -> 6 | E91: =COUNTIFS(TaskRawData!D:D,">="&C91,TaskRawData!D:D,"<"&C92) -> 6 | F91: 34 | G91: =SUMIFS(MeetingRawData!C:C,MeetingRawData!B:B,">"&C91,MeetingRawData!B:B,"<"&(C91+1)) -> 6.333333333 | H91: 0 | I91: 30.72085859 | J91: 41.72358586 | K91: 36.22222222 | L91: 2 | M91: 5 | N91: 16.96
A92: 1 | B92: 07-май, Пн | C92: =C91+3 -> 2012-05-07 | D92: =COUNTIFS(TaskRawData!C:C,">="&C92,TaskRawData!C:C,"<"&C93) -> 0 | E92: =COUNTIFS(TaskRawData!D:D,">="&C92,TaskRawData!D:D,"<"&C93) -> 0 | F92: 34 | G92: =SUMIFS(MeetingRawData!C:C,MeetingRawData!B:B,">"&C92,MeetingRawData!B:B,"<"&(C92+1)) -> 2.333333333 | H92: 0 | I92: 30.72085859 | J92: 41.72358586 | K92: 36.22222222 | L92: 6 | M92: 3 | N92: 16.96
A93: 2 | B93: 08-май, Вт | C93: =C92+1 -> 2012-05-08 | D93: =COUNTIFS(TaskRawData!C:C,">="&C93,TaskRawData!C:C,"<"&C94) -> 0 | E93: =COUNTIFS(TaskRawData!D:D,">="&C93,TaskRawData!D:D,"<"&C94) -> 0 | F93: 34 | G93: =SUMIFS(MeetingRawData!C:C,MeetingRawData!B:B,">"&C93,MeetingRawData!B:B,"<"&(C93+1)) -> 2.333333333 | H93: 0 | I93: 30.72085859 | J93: 41.72358586 | K93: 36.22222222 | L93: 0 | M93: 0 | N93: 16.96
A94: 3 | B94: 09-май, Ср | C94: 2012-05-09 | D94: =COUNTIFS(TaskRawData!C:C,">="&C94,TaskRawData!C:C,"<"&C95) -> 2 | E94: =COUNTIFS(TaskRawData!D:D,">="&C94,TaskRawData!D:D,"<"&C95) -> 0 | F94: 36 | G94: =SUMIFS(MeetingRawData!C:C,MeetingRawData!B:B,">"&C94,MeetingRawData!B:B,"<"&(C94+1)) -> 1.833333333 | H94: 2 | I94: 30.72085859 | J94: 41.72358586 | K94: 36.22222222 | L94: 2 | M94: 1 | N94: 16.96
A95: 4 | B95: 10-май, Чт | C95: 2012-05-10 | D95: =COUNTIFS(TaskRawData!C:C,">="&C95,TaskRawData!C:C,"<"&C96) -> 11 | E95: =COUNTIFS(TaskRawData!D:D,">="&C95,TaskRawData!D:D,"<"&C96) -> 15 | F95: 32 | G95: =SUMIFS(MeetingRawData!C:C,MeetingRawData!B:B,">"&C95,MeetingRawData!B:B,"<"&(C95+1)) -> 4.083333333 | H95: 4 | I95: 30.72085859 | J95: 41.72358586 | K95: 36.22222222 | L95: 9 | M95: 6.5 | N95: 16.96
A96: 5 | B96: 11-май, Пт | C96: 2012-05-11 | D96: =COUNTIFS(TaskRawData!C:C,">="&C96,TaskRawData!C:C,"<"&C97) -> 12 | E96: =COUNTIFS(TaskRawData!D:D,">="&C96,TaskRawData!D:D,"<"&C97) -> 16 | F96: 28 | G96: =SUMIFS(MeetingRawData!C:C,MeetingRawData!B:B,">"&C96,MeetingRawData!B:B,"<"&(C96+1)) -> 5.833333333 | H96: 4 | I96: 30.72085859 | J96: 41.72358586 | K96: 36.22222222 | L96: 1 | M96: 11.5 | N96: 16.96
A97: 1 | B97: 14-май, Пн | C97: =C96+3 -> 2012-05-14 | D97: =COUNTIFS(TaskRawData!C:C,">="&C97,TaskRawData!C:C,"<"&C98) -> 4 | E97: =COUNTIFS(TaskRawData!D:D,">="&C97,TaskRawData!D:D,"<"&C98) -> 4 | F97: 28 | G97: =SUMIFS(MeetingRawData!C:C,MeetingRawData!B:B,">"&C97,MeetingRawData!B:B,"<"&(C97+1)) -> 2.333333333 | H97: 0 | I97: 30.72085859 | J97: 41.72358586 | K97: 36.22222222 | L97: 8 | M97: 8 | N97: 16.96
A98: 2 | B98: 15-май, Вт | C98: =C97+1 -> 2012-05-15 | D98: =COUNTIFS(TaskRawData!C:C,">="&C98,TaskRawData!C:C,"<"&C99) -> 5 | E98: =COUNTIFS(TaskRawData!D:D,">="&C98,TaskRawData!D:D,"<"&C99) -> 4 | F98: 29 | G98: =SUMIFS(MeetingRawData!C:C,MeetingRawData!B:B,">"&C98,MeetingRawData!B:B,"<"&(C98+1)) -> 13.83333333 | H98: 1 | I98: 30.72085859 | J98: 41.72358586 | K98: 36.22222222 | L98: 1 | M98: 4.5 | N98: 16.96
A99: 3 | B99: 16-май, Ср | C99: 2012-05-16 | D99: =COUNTIFS(TaskRawData!C:C,">="&C99,TaskRawData!C:C,"<"&C100) -> 10 | E99: =COUNTIFS(TaskRawData!D:D,">="&C99,TaskRawData!D:D,"<"&C100) -> 8 | F99: 31 | G99: =SUMIFS(MeetingRawData!C:C,MeetingRawData!B:B,">"&C99,MeetingRawData!B:B,"<"&(C99+1)) -> 3.333333333 | H99: 2 | I99: 30.72085859 | J99: 41.72358586 | K99: 36.22222222 | L99: 5 | M99: 7.5 | N99: 16.96
A100: 4 | B100: 17-май, Чт | C100: 2012-05-17 | D100: =COUNTIFS(TaskRawData!C:C,">="&C100,TaskRawData!C:C,"<"&C101) -> 5 | E100: =COUNTIFS(TaskRawData!D:D,">="&C100,TaskRawData!D:D,"<"&C101) -> 5 | F100: 31 | G100: =SUMIFS(MeetingRawData!C:C,MeetingRawData!B:B,">"&C100,MeetingRawData!B:B,"<"&(C100+1)) -> 4.583333333 | H100: 0 | I100: 30.72085859 | J100: 41.72358586 | K100: 36.22222222 | L100: 5 | M100: 7.5 | N100: 16.96
A101: 5 | B101: 18-май, Пт | C101: 2012-05-18 | D101: =COUNTIFS(TaskRawData!C:C,">="&C101,TaskRawData!C:C,"<"&C102) -> 4 | E101: =COUNTIFS(TaskRawData!D:D,">="&C101,TaskRawData!D:D,"<"&C102) -> 7 | F101: 28 | G101: =SUMIFS(MeetingRawData!C:C,MeetingRawData!B:B,">"&C101,MeetingRawData!B:B,"<"&(C101+1)) -> 2.333333333 | H101: 3 | I101: 30.72085859 | J101: 41.72358586 | K101: 36.22222222 | L101: 1 | M101: 4.5 | N101: 16.96
A102: 1 | B102: 21-май, Пн | C102: =C101+3 -> 2012-05-21 | D102: =COUNTIFS(TaskRawData!C:C,">="&C102,TaskRawData!C:C,"<"&C103) -> 6 | E102: =COUNTIFS(TaskRawData!D:D,">="&C102,TaskRawData!D:D,"<"&C103) -> 5 | F102: 29 | G102: =SUMIFS(MeetingRawData!C:C,MeetingRawData!B:B,">"&C102,MeetingRawData!B:B,"<"&(C102+1)) -> 4 | H102: 1 | I102: 30.72085859 | J102: 41.72358586 | K102: 36.22222222 | L102: 2 | M102: 5 | N102: 16.96
A103: 2 | B103: 22-май, Вт | C103: =C102+1 -> 2012-05-22 | D103: =COUNTIFS(TaskRawData!C:C,">="&C103,TaskRawData!C:C,"<"&C104) -> 4 | E103: =COUNTIFS(TaskRawData!D:D,">="&C103,TaskRawData!D:D,"<"&C104) -> 4 | F103: 29 | G103: =SUMIFS(MeetingRawData!C:C,MeetingRawData!B:B,">"&C103,MeetingRawData!B:B,"<"&(C103+1)) -> 4.333333333 | H103: 0 | I103: 30.72085859 | J103: 41.72358586 | K103: 36.22222222 | L103: 2 | M103: 5 | N103: 16.96
A104: 3 | B104: 23-май, Ср | C104: 2012-05-23 | D104: =COUNTIFS(TaskRawData!C:C,">="&C104,TaskRawData!C:C,"<"&C105) -> 1 | E104: =COUNTIFS(TaskRawData!D:D,">="&C104,TaskRawData!D:D,"<"&C105) -> 0 | F104: 30 | G104: =SUMIFS(MeetingRawData!C:C,MeetingRawData!B:B,">"&C104,MeetingRawData!B:B,"<"&(C104+1)) -> 2.333333333 | H104: 1 | I104: 30.72085859 | J104: 41.72358586 | K104: 36.22222222 | L104: 3 | M104: 2.5 | N104: 16.96
A105: 4 | B105: 24-май, Чт | C105: 2012-05-24 | D105: =COUNTIFS(TaskRawData!C:C,">="&C105,TaskRawData!C:C,"<"&C106) -> 1 | E105: =COUNTIFS(TaskRawData!D:D,">="&C105,TaskRawData!D:D,"<"&C106) -> 0 | F105: 31 | G105: =SUMIFS(MeetingRawData!C:C,MeetingRawData!B:B,">"&C105,MeetingRawData!B:B,"<"&(C105+1)) -> 2.583333333 | H105: 1 | I105: 30.72085859 | J105: 41.72358586 | K105: 36.22222222 | L105: 0 | M105: 1 | N105: 16.96
A106: 5 | B106: 25-май, Пт | C106: 2012-05-25 | D106: =COUNTIFS(TaskRawData!C:C,">="&C106,TaskRawData!C:C,"<"&C107) -> 2 | E106: =COUNTIFS(TaskRawData!D:D,">="&C106,TaskRawData!D:D,"<"&C107) -> 0 | F106: 33 | G106: =SUMIFS(MeetingRawData!C:C,MeetingRawData!B:B,">"&C106,MeetingRawData!B:B,"<"&(C106+1)) -> 0 | H106: 2 | I106: 30.72085859 | J106: 41.72358586 | K106: 36.22222222 | L106: 1 | M106: 1.5 | N106: 16.96
A107: 6 | B107: 26-май, Сб | C107: =C106+1 -> 2012-05-26
D113: OUTFLOW | G113: INFLOW
B115: Bin | C115: Number of tasks | D115: Cumulative | E115: Number of days | G115: Number of tasks | H115: Cumulative | I115: Number of days
B116: -1
B117: 5 | C117: =E117/$E$123 -> 0.5333333333 | D117: =C117+D116 -> 0.5333333333 | E117: =COUNTIFS($E$62:$E$106,"<="&B117,$E$62:$E$106,">"&B116) -> 24 | G117: =I117/$I$123 -> 0.5111111111 | H117: =G117+H116 -> 0.5111111111 | I117: =COUNTIFS($D$62:$D$106,"<="&B117,$D$62:$D$106,">"&B116) -> 23
B118: 10 | C118: =E118/$E$123 -> 0.2888888889 | D118: =C118+D117 -> 0.8222222222 | E118: 13 | G118: 0.3555555556 | H118: =G118+H117 -> 0.8666666667 | I118: 16
B119: 15 | C119: 0.1111111111 | D119: 0.9333333333 | E119: 5 | G119: 0.1111111111 | H119: 0.9777777778 | I119: 5
B120: 20 | C120: 0.06666666667 | D120: 1 | E120: 3 | G120: 0 | H120: 0.9777777778 | I120: 0
B121: 25 | C121: 0 | D121: 1 | E121: 0 | G121: 0.02222222222 | H121: 1 | I121: 1
B122: 100 | C122: 0 | D122: 1 | E122: 0 | G122: 0 | H122: 1 | I122: 0
D123: TOTAL | E123: =SUM(E117:E122) -> 45 | H123: TOTAL | I123: =SUM(I117:I122) -> 45
B129: To Do | C129: =C131-C130 -> 26
B130: To Check | C130: =COUNTIFS(TaskRawData!B:B, FALSE,TaskRawData!E:E,"TO CHECK") -> 7
B131: TOTAL | C131: =COUNTIFS(TaskRawData!B:B, FALSE) -> 33

Sheet Лист2
